[Event "*** Titled Tuesday 3|2 Blitz"]
[Site "Chess.com"]
[Date "2015.08.04"]
[Round "7"]
[White "talaicito"]
[Black "michaelk123"]
[Result "0-1"]
[WhiteElo "2041"]
[BlackElo "2061"]
[TimeControl "180+2"]
[EndTime "13:02:20 PDT"]
[Termination "michaelk123 won by checkmate"]

1. e4 {[%clk 0:03:01.9]} 1... c5 {[%clk 0:03:00.7]} 2. Nf3 {[%clk 0:03:02.7]}
2... e6 {[%clk 0:03:01.7]} 3. d4 {[%clk 0:03:03.6]} 3... cxd4 {[%clk 0:03:03.6]}
4. Nxd4 {[%clk 0:03:04.7]} 4... Nc6 {[%clk 0:03:05.4]} 5. Nc3 {[%clk 0:02:57]}
5... Qc7 {[%clk 0:03:06.1]} 6. Be2 {[%clk 0:02:55.3]} 6... a6 {[%clk 0:03:05.9]}
7. O-O {[%clk 0:02:55]} 7... Nf6 {[%clk 0:03:06.5]} 8. Bg5 {[%clk 0:02:51.8]}
8... Be7 {[%clk 0:02:49.4]} 9. Qd2 {[%clk 0:02:40.1]} 9... h6 {[%clk 0:02:49]}
10. Be3 {[%clk 0:02:35.8]} 10... b5 {[%clk 0:02:46.4]} 11. a3 {[%clk 0:02:36.2]}
11... Bb7 {[%clk 0:02:46.4]} 12. f4 {[%clk 0:02:22.4]} 12... Nxd4 {[%clk
0:02:37.6]} 13. Qxd4 {[%clk 0:02:22.3]} 13... Rc8 {[%clk 0:02:36.1]} 14. e5
{[%clk 0:02:16]} 14... Nd5 {[%clk 0:02:36.6]} 15. Nxd5 {[%clk 0:02:05]} 15...
Bxd5 {[%clk 0:02:38.5]} 16. f5 {[%clk 0:01:34.9]} 16... Bc5 {[%clk 0:02:28.2]}
17. Qxc5 {[%clk 0:01:33.8]} 17... Qxc5 {[%clk 0:02:30.1]} 18. Bxc5 {[%clk
0:01:34.9]} 18... Rxc5 {[%clk 0:02:32]} 19. fxe6 {[%clk 0:01:35.9]} 19... Bxe6
{[%clk 0:02:20.2]} 20. Bd3 {[%clk 0:01:34.2]} 20... Rxe5 {[%clk 0:02:19.1]} 21.
a4 {[%clk 0:01:35.2]} 21... Ke7 {[%clk 0:02:17.1]} 22. axb5 {[%clk 0:01:34.3]}
22... axb5 {[%clk 0:02:18.1]} 23. Ra5 {[%clk 0:01:30.3]} 23... Rb8 {[%clk
0:02:16.3]} 24. Rfa1 {[%clk 0:00:52.2]} 24... Rb6 {[%clk 0:02:04.2]} 25. Kf2
{[%clk 0:00:51.1]} 25... h5 {[%clk 0:02:03.6]} 26. R1a3 {[%clk 0:00:20]} 26...
h4 {[%clk 0:02:01]} 27. b4 {[%clk 0:00:17]} 27... Bf5 {[%clk 0:01:51.7]} 28. c4
{[%clk 0:00:13.2]} 28... Bxd3 {[%clk 0:01:50.8]} 29. Rxd3 {[%clk 0:00:13.9]}
29... Rf5+ {[%clk 0:01:51.5]} 30. Kg1 {[%clk 0:00:14.5]} 30... bxc4 {[%clk
0:01:40.1]} 31. Re3+ {[%clk 0:00:13.7]} 31... Kf6 {[%clk 0:01:38.1]} 32. Re4
{[%clk 0:00:12.3]} 32... Rxb4 {[%clk 0:01:34.4]} 33. Ra6+ {[%clk 0:00:09.7]}
33... Kg5 {[%clk 0:01:32.5]} 34. h3 {[%clk 0:00:10.1]} 34... Rb1+ {[%clk
0:01:27.3]} 35. Kh2 {[%clk 0:00:11.1]} 35... g6 {[%clk 0:01:17.1]} 36. Rg4+
{[%clk 0:00:10.6]} 36... Kh6 {[%clk 0:01:14.6]} 37. Rxh4+ {[%clk 0:00:11.2]}
37... Kg7 {[%clk 0:01:15.3]} 38. Rxc4 {[%clk 0:00:12]} 38... Rd1 {[%clk
0:01:09.3]} 39. Rc7 {[%clk 0:00:11.5]} 39... Rd2 {[%clk 0:01:08]} 40. Raa7
{[%clk 0:00:11.7]} 40... Rff2 {[%clk 0:00:50]} 41. Rxd7 {[%clk 0:00:11.6]} 41...
Rxg2+ {[%clk 0:00:51]} 42. Kh1 {[%clk 0:00:12.9]} 42... Rh2+ {[%clk 0:00:48.7]}
43. Kg1 {[%clk 0:00:13.8]} 43... Rdg2+ {[%clk 0:00:49.6]} 44. Kf1 {[%clk
0:00:14.7]} 44... Rf2+ {[%clk 0:00:50.8]} 45. Kg1 {[%clk 0:00:15.5]} 45... Rhg2+
{[%clk 0:00:51.9]} 46. Kh1 {[%clk 0:00:16.4]} 46... Rg3 {[%clk 0:00:52]} 47. h4
{[%clk 0:00:13.6]} 47... Rg4 {[%clk 0:00:49.1]} 48. h5 {[%clk 0:00:12]} 48...
Rf5 {[%clk 0:00:46.8]} 49. hxg6 {[%clk 0:00:12.4]} 49... Rh5# {[%clk 0:00:47.1]}
0-1

[Event "*** Titled Tuesday 3|2 Blitz"]
[Site "Chess.com"]
[Date "2015.08.04"]
[Round "7"]
[White "CraiggoryC"]
[Black "WanderingPuppet"]
[Result "0-1"]
[WhiteElo "2006"]
[BlackElo "2178"]
[TimeControl "180+2"]
[EndTime "13:02:26 PDT"]
[Termination "WanderingPuppet won on time"]

1. e4 {[%clk 0:03:01.9]} 1... c5 {[%clk 0:03:00.9]} 2. Nf3 {[%clk 0:03:02.5]}
2... d6 {[%clk 0:03:01.9]} 3. d4 {[%clk 0:03:04]} 3... cxd4 {[%clk 0:03:03.8]}
4. Nxd4 {[%clk 0:03:05.4]} 4... Nf6 {[%clk 0:03:05.5]} 5. Nc3 {[%clk 0:03:06.9]}
5... a6 {[%clk 0:03:07.1]} 6. Be3 {[%clk 0:03:08.5]} 6... e6 {[%clk 0:03:08.6]}
7. g4 {[%clk 0:03:08.9]} 7... h6 {[%clk 0:03:09.1]} 8. Rg1 {[%clk 0:02:51.5]}
8... b5 {[%clk 0:03:09.9]} 9. f3 {[%clk 0:02:47.4]} 9... Bb7 {[%clk 0:03:10.5]}
10. h4 {[%clk 0:02:47.2]} 10... g6 {[%clk 0:03:10]} 11. Qd2 {[%clk 0:02:36.7]}
11... Bg7 {[%clk 0:03:10.3]} 12. O-O-O {[%clk 0:02:37.1]} 12... b4 {[%clk
0:03:07.8]} 13. Nce2 {[%clk 0:02:37.3]} 13... Qa5 {[%clk 0:03:06.1]} 14. Kb1
{[%clk 0:02:37.3]} 14... d5 {[%clk 0:03:03.5]} 15. g5 {[%clk 0:02:15.3]} 15...
hxg5 {[%clk 0:03:01.9]} 16. hxg5 {[%clk 0:02:16.4]} 16... Nfd7 {[%clk
0:03:02.3]} 17. Nb3 {[%clk 0:02:07.6]} 17... Qa4 {[%clk 0:02:58.8]} 18. Ng3
{[%clk 0:01:59.1]} 18... a5 {[%clk 0:02:31.8]} 19. Rh1 {[%clk 0:01:18.9]} 19...
Rxh1 {[%clk 0:02:30.6]} 20. Nxh1 {[%clk 0:01:19.9]} 20... Qc6 {[%clk 0:02:18.5]}
21. Nd4 {[%clk 0:01:06.8]} 21... Qc8 {[%clk 0:01:59.6]} 22. Nb5 {[%clk
0:01:05.4]} 22... Bf8 {[%clk 0:01:48.1]} 23. Qh2 {[%clk 0:01:00.8]} 23... Na6
{[%clk 0:01:45.1]} 24. Qh8 {[%clk 0:00:57.5]} 24... Qc6 {[%clk 0:01:36.9]} 25.
exd5 {[%clk 0:00:55]} 25... exd5 {[%clk 0:01:37.8]} 26. Rxd5 {[%clk 0:00:54]}
26... Qxd5 {[%clk 0:01:34.4]} 27. Bc4 {[%clk 0:00:50]} 27... Qd1+ {[%clk
0:01:14.9]} 28. Bc1 {[%clk 0:00:50.6]} 28... O-O-O {[%clk 0:01:02.9]} 29. Nf2
{[%clk 0:00:41.2]} 29... Qg1 {[%clk 0:00:52]} 30. Ne4 {[%clk 0:00:15.3]} 30...
Bxe4 {[%clk 0:00:34.8]} 31. fxe4 {[%clk 0:00:16.1]} 31... Ndc5 {[%clk
0:00:35.5]} 32. Qe5 {[%clk 0:00:10.5]} 32... Qd1 {[%clk 0:00:21.5]} 33. Bxf7
{[%clk 0:00:06.4]} 33... Kb7 {[%clk 0:00:17]} 34. Bd5+ {[%clk 0:00:06.8]} 34...
Rxd5 {[%clk 0:00:15.8]} 35. exd5 {[%clk 0:00:08]} 35... Qg4 {[%clk 0:00:12.2]}
36. d6 {[%clk 0:00:05.8]} 36... Qd7 {[%clk 0:00:12.3]} 37. Qd5+ {[%clk
0:00:06.5]} 37... Qc6 {[%clk 0:00:12.5]} 38. Qf7+ {[%clk 0:00:07.6]} 38... Nd7
{[%clk 0:00:12.5]} 39. a4 {[%clk 0:00:02.5]} 39... Bxd6 {[%clk 0:00:12.2]} 0-1

[Event "*** Titled Tuesday 3|2 Blitz"]
[Site "Chess.com"]
[Date "2015.08.04"]
[Round "7"]
[White "ChadaevNikolay"]
[Black "Konavets"]
[Result "1/2-1/2"]
[WhiteElo "2595"]
[BlackElo "2468"]
[TimeControl "180+2"]
[EndTime "13:02:29 PDT"]
[Termination "Game drawn by repetition"]

1. e4 {[%clk 0:03:00.5]} 1... c5 {[%clk 0:02:58.7]} 2. Nf3 {[%clk 0:03:00.7]}
2... e6 {[%clk 0:03:00]} 3. g3 {[%clk 0:03:01]} 3... d5 {[%clk 0:03:00.3]} 4.
exd5 {[%clk 0:03:01.8]} 4... exd5 {[%clk 0:03:01.6]} 5. d4 {[%clk 0:03:03.4]}
5... Nf6 {[%clk 0:03:02.9]} 6. Bg2 {[%clk 0:03:04.5]} 6... Nc6 {[%clk
0:03:04.3]} 7. O-O {[%clk 0:03:06.1]} 7... cxd4 {[%clk 0:03:04.3]} 8. Nxd4
{[%clk 0:03:06.8]} 8... Be7 {[%clk 0:03:05.7]} 9. h3 {[%clk 0:03:06]} 9... O-O
{[%clk 0:03:06.7]} 10. Be3 {[%clk 0:03:06.9]} 10... Nxd4 {[%clk 0:03:07.2]} 11.
Bxd4 {[%clk 0:03:07.3]} 11... Be6 {[%clk 0:03:08.6]} 12. Nd2 {[%clk 0:03:07]}
12... Rc8 {[%clk 0:03:10]} 13. c3 {[%clk 0:03:06.5]} 13... Ne8 {[%clk
0:03:10.2]} 14. Qb3 {[%clk 0:03:01.1]} 14... Nd6 {[%clk 0:03:10.6]} 15. Rfe1
{[%clk 0:03:01.6]} 15... Qa5 {[%clk 0:03:07.6]} 16. Qd1 {[%clk 0:02:39.1]} 16...
Nf5 {[%clk 0:03:02.2]} 17. Nf3 {[%clk 0:02:33.2]} 17... Rfe8 {[%clk 0:02:51.4]}
18. a3 {[%clk 0:02:27.6]} 18... Bf8 {[%clk 0:02:50.6]} 19. Qd3 {[%clk
0:02:23.4]} 19... h6 {[%clk 0:02:50.7]} 20. Rad1 {[%clk 0:02:22.9]} 20... Bd7
{[%clk 0:02:47.4]} 21. Ne5 {[%clk 0:02:18.2]} 21... Be6 {[%clk 0:02:48.6]} 22.
Nf3 {[%clk 0:02:00.7]} 22... Bd7 {[%clk 0:02:47.2]} 23. Rxe8 {[%clk 0:02:01.7]}
23... Rxe8 {[%clk 0:02:48.1]} 24. Be5 {[%clk 0:01:52]} 24... Be6 {[%clk
0:02:44.4]} 25. Nd4 {[%clk 0:01:48.5]} 25... Nxd4 {[%clk 0:02:42.8]} 26. Bxd4
{[%clk 0:01:47.3]} 26... Qc7 {[%clk 0:02:42.5]} 27. Be3 {[%clk 0:01:44.3]} 27...
Rd8 {[%clk 0:02:41.8]} 28. Qd4 {[%clk 0:01:42.5]} 28... b6 {[%clk 0:02:40.6]}
29. Qd3 {[%clk 0:01:43.4]} 29... Bc5 {[%clk 0:02:40.1]} 30. Bd4 {[%clk
0:01:41.5]} 30... Qd7 {[%clk 0:02:22.8]} 31. Kh2 {[%clk 0:01:41.6]} 31... Bf5
{[%clk 0:02:20.8]} 32. Qd2 {[%clk 0:01:24.3]} 32... Be4 {[%clk 0:02:16.6]} 33.
Re1 {[%clk 0:01:18.3]} 33... Re8 {[%clk 0:01:34.7]} 34. Bxc5 {[%clk 0:01:09.3]}
34... Bxg2 {[%clk 0:01:26.1]} 35. Rxe8+ {[%clk 0:01:09.8]} 35... Qxe8 {[%clk
0:01:28]} 36. Kxg2 {[%clk 0:01:11]} 36... bxc5 {[%clk 0:01:24.5]} 37. Qxd5
{[%clk 0:01:12.5]} 37... Qe2 {[%clk 0:01:15.7]} 38. b4 {[%clk 0:01:04]} 38... c4
{[%clk 0:01:14.9]} 39. a4 {[%clk 0:01:01.5]} 39... Qc2 {[%clk 0:01:05.3]} 40.
Qxc4 {[%clk 0:00:57.8]} 40... Qxa4 {[%clk 0:01:06]} 41. Qc8+ {[%clk 0:00:54.8]}
41... Kh7 {[%clk 0:01:06.9]} 42. Qf5+ {[%clk 0:00:56.2]} 42... Kg8 {[%clk
0:01:07.8]} 43. Qd5 {[%clk 0:00:56.4]} 43... Qa3 {[%clk 0:01:04.7]} 44. Qc6
{[%clk 0:00:51.2]} 44... Qb3 {[%clk 0:01:04]} 45. b5 {[%clk 0:00:51.4]} 45...
Kh7 {[%clk 0:01:03.7]} 46. c4 {[%clk 0:00:52.5]} 46... f5 {[%clk 0:00:56.2]} 47.
c5 {[%clk 0:00:53]} 47... Qc4 {[%clk 0:00:57.4]} 48. b6 {[%clk 0:00:50.6]} 48...
axb6 {[%clk 0:00:58.2]} 49. Qxb6 {[%clk 0:00:51.8]} 49... Qe4+ {[%clk
0:00:58.8]} 50. Kh2 {[%clk 0:00:52.5]} 50... Qd4 {[%clk 0:01:00]} 51. Kg2 {[%clk
0:00:48.3]} 51... Qd5+ {[%clk 0:01:00.6]} 52. Kh2 {[%clk 0:00:43.8]} 52... Qd4
{[%clk 0:01:01.6]} 53. Kg1 {[%clk 0:00:37.2]} 53... Qd1+ {[%clk 0:01:02.2]} 54.
Kg2 {[%clk 0:00:34.2]} 54... Qd5+ {[%clk 0:01:02.7]} 55. Kh2 {[%clk 0:00:35.4]}
55... Qd4 {[%clk 0:01:03.7]} 1/2-1/2

[Event "*** Titled Tuesday 3|2 Blitz"]
[Site "Chess.com"]
[Date "2015.08.04"]
[Round "7"]
[White "petrpalachev"]
[Black "GregShahade"]
[Result "1-0"]
[WhiteElo "2360"]
[BlackElo "2285"]
[TimeControl "180+2"]
[EndTime "13:02:30 PDT"]
[Termination "petrpalachev won by resignation"]

1. d4 {[%clk 0:03:01.9]} 1... Nf6 {[%clk 0:02:59.9]} 2. c4 {[%clk 0:03:03.5]}
2... e6 {[%clk 0:03:00.9]} 3. Nc3 {[%clk 0:03:04.9]} 3... Bb4 {[%clk 0:03:01.7]}
4. Nf3 {[%clk 0:03:05.5]} 4... O-O {[%clk 0:02:59]} 5. e3 {[%clk 0:03:04.9]}
5... c5 {[%clk 0:02:58]} 6. Bd3 {[%clk 0:03:04]} 6... b6 {[%clk 0:02:32.1]} 7.
O-O {[%clk 0:03:03.7]} 7... Bb7 {[%clk 0:02:29.3]} 8. Na4 {[%clk 0:03:04.7]}
8... cxd4 {[%clk 0:02:29.1]} 9. exd4 {[%clk 0:03:05.6]} 9... Re8 {[%clk
0:02:27.7]} 10. a3 {[%clk 0:03:06.8]} 10... Bf8 {[%clk 0:02:27.9]} 11. h3 {[%clk
0:03:08.2]} 11... d6 {[%clk 0:02:28.5]} 12. Re1 {[%clk 0:03:07.2]} 12... Nbd7
{[%clk 0:02:28.1]} 13. Bf4 {[%clk 0:03:06.5]} 13... Rc8 {[%clk 0:02:23.6]} 14.
Rc1 {[%clk 0:03:06.4]} 14... g6 {[%clk 0:02:23.5]} 15. b4 {[%clk 0:03:01.8]}
15... Nb8 {[%clk 0:01:52.6]} 16. Nc3 {[%clk 0:03:00]} 16... Bg7 {[%clk
0:01:52.4]} 17. Nb5 {[%clk 0:02:59.2]} 17... Nh5 {[%clk 0:01:39.7]} 18. Bh2
{[%clk 0:02:28.9]} 18... Bxf3 {[%clk 0:01:28]} 19. Qxf3 {[%clk 0:02:29.1]} 19...
e5 {[%clk 0:01:29.3]} 20. Nxa7 {[%clk 0:02:19.2]} 20... Rc7 {[%clk 0:01:29.7]}
21. Nb5 {[%clk 0:02:19.9]} 21... Rce7 {[%clk 0:01:30.3]} 22. dxe5 {[%clk
0:02:19.6]} 22... dxe5 {[%clk 0:01:23.5]} 23. Be4 {[%clk 0:02:01.8]} 23... f5
{[%clk 0:01:12.9]} 24. Bd5+ {[%clk 0:01:47.5]} 24... Kh8 {[%clk 0:01:13.3]} 25.
Rcd1 {[%clk 0:01:44.2]} 25... e4 {[%clk 0:00:46.9]} 26. Qb3 {[%clk 0:01:38]}
26... Rd7 {[%clk 0:00:39.9]} 27. c5 {[%clk 0:01:03]} 27... bxc5 {[%clk
0:00:36.9]} 28. bxc5 {[%clk 0:01:04.9]} 28... Nf6 {[%clk 0:00:36.5]} 29. c6
{[%clk 0:00:24.6]} 29... Rxd5 {[%clk 0:00:26.2]} 30. c7 {[%clk 0:00:24.4]} 30...
Rxd1 {[%clk 0:00:26.8]} 31. Rxd1 {[%clk 0:00:23.8]} 31... Qe7 {[%clk 0:00:27.4]}
32. cxb8=Q {[%clk 0:00:23.3]} 32... Rxb8 {[%clk 0:00:29]} 33. Bxb8 {[%clk
0:00:24.5]} 33... h5 {[%clk 0:00:26.5]} 34. Bd6 {[%clk 0:00:23.8]} 34... Qb7
{[%clk 0:00:25.8]} 35. Be5 {[%clk 0:00:23]} 35... e3 {[%clk 0:00:25.7]} 36. Bxf6
{[%clk 0:00:20.8]} 36... Bxf6 {[%clk 0:00:25.8]} 37. fxe3 {[%clk 0:00:18.3]}
37... Bg5 {[%clk 0:00:24]} 38. a4 {[%clk 0:00:18.4]} 38... Qb8 {[%clk
0:00:22.4]} 39. Qc3+ {[%clk 0:00:19.3]} 39... Kh7 {[%clk 0:00:22.3]} 40. Rd7+
{[%clk 0:00:19.9]} 1-0

[Event "*** Titled Tuesday 3|2 Blitz"]
[Site "Chess.com"]
[Date "2015.08.04"]
[Round "7"]
[White "proxy6"]
[Black "Hafez_Bakr"]
[Result "1-0"]
[WhiteElo "1914"]
[BlackElo "1772"]
[TimeControl "180+2"]
[EndTime "13:02:37 PDT"]
[Termination "proxy6 won on time"]

1. e4 {[%clk 0:03:01.9]} 1... c5 {[%clk 0:03:00.6]} 2. Nf3 {[%clk 0:03:02.2]}
2... d6 {[%clk 0:03:02.5]} 3. d4 {[%clk 0:03:03.1]} 3... cxd4 {[%clk 0:03:04.4]}
4. Nxd4 {[%clk 0:03:05]} 4... Nf6 {[%clk 0:03:06.3]} 5. Nc3 {[%clk 0:03:05.5]}
5... a6 {[%clk 0:03:08.2]} 6. Be3 {[%clk 0:03:05.4]} 6... e5 {[%clk 0:03:06.5]}
7. Nb3 {[%clk 0:03:05.6]} 7... Be7 {[%clk 0:03:08.4]} 8. h3 {[%clk 0:03:05.4]}
8... Be6 {[%clk 0:03:08.8]} 9. g4 {[%clk 0:03:02.5]} 9... h6 {[%clk 0:03:09.1]}
10. Qf3 {[%clk 0:03:02.4]} 10... O-O {[%clk 0:03:08.3]} 11. O-O-O {[%clk
0:03:02.5]} 11... Nbd7 {[%clk 0:03:08.9]} 12. Qg2 {[%clk 0:03:02.1]} 12... b5
{[%clk 0:03:08.4]} 13. f4 {[%clk 0:02:59.7]} 13... exf4 {[%clk 0:03:07.6]} 14.
Bxf4 {[%clk 0:03:01.6]} 14... Qc7 {[%clk 0:03:09.3]} 15. Nd5 {[%clk 0:02:57.4]}
15... Bxd5 {[%clk 0:03:05.2]} 16. exd5 {[%clk 0:02:59.3]} 16... Ne5 {[%clk
0:03:05.8]} 17. Bd3 {[%clk 0:02:42.9]} 17... Rfc8 {[%clk 0:03:06.6]} 18. Bf5
{[%clk 0:02:38.6]} 18... Rcb8 {[%clk 0:03:04]} 19. Nd4 {[%clk 0:02:35.6]} 19...
a5 {[%clk 0:02:50.7]} 20. Bxe5 {[%clk 0:02:32.6]} 20... dxe5 {[%clk 0:02:51]}
21. Nc6 {[%clk 0:02:33.5]} 21... Rd8 {[%clk 0:02:47.2]} 22. Nxd8 {[%clk
0:02:32.4]} 22... Bxd8 {[%clk 0:02:40.9]} 23. d6 {[%clk 0:02:32.1]} 23... Qb8
{[%clk 0:02:41.8]} 24. Qc6 {[%clk 0:02:26.5]} 24... a4 {[%clk 0:02:37.2]} 25.
Kb1 {[%clk 0:02:25.2]} 25... b4 {[%clk 0:02:37.7]} 26. d7 {[%clk 0:02:15.1]}
26... b3 {[%clk 0:02:31.6]} 27. cxb3 {[%clk 0:02:15.7]} 27... axb3 {[%clk
0:02:31.2]} 28. a3 {[%clk 0:02:16.6]} 28... Be7 {[%clk 0:02:27.8]} 29. Be4
{[%clk 0:02:15.3]} 29... Nxe4 {[%clk 0:02:24.4]} 30. Qxe4 {[%clk 0:02:14.1]}
30... Ra7 {[%clk 0:02:15.9]} 31. Qc6 {[%clk 0:02:12.3]} 31... Rc7 {[%clk
0:02:15.4]} 32. Qa6 {[%clk 0:02:07.5]} 32... Bd8 {[%clk 0:02:09.8]} 33. Qd6
{[%clk 0:02:00.1]} 33... Qb7 {[%clk 0:02:02.1]} 34. Qxe5 {[%clk 0:01:58.3]}
34... Qb8 {[%clk 0:01:53.6]} 35. Qe8+ {[%clk 0:01:57.2]} 35... Kh7 {[%clk
0:01:53.7]} 36. Rhe1 {[%clk 0:01:57.3]} 36... Rc2 {[%clk 0:01:45.2]} 37. Qe4+
{[%clk 0:01:50.7]} 37... g6 {[%clk 0:01:43.7]} 38. Qf3 {[%clk 0:01:19.4]} 38...
Kg7 {[%clk 0:01:41.7]} 39. Rf1 {[%clk 0:01:17.2]} 39... f5 {[%clk 0:01:41.6]}
40. Rf2 {[%clk 0:01:05.4]} 40... Be7 {[%clk 0:01:41.8]} 41. Rxc2 {[%clk
0:01:04.2]} 41... Qc7 {[%clk 0:01:43]} 42. Rxc7 {[%clk 0:01:03.9]} 1-0

[Event "*** Titled Tuesday 3|2 Blitz"]
[Site "Chess.com"]
[Date "2015.08.04"]
[Round "7"]
[White "mortalbovine"]
[Black "stefanodinn"]
[Result "0-1"]
[WhiteElo "1782"]
[BlackElo "2145"]
[TimeControl "180+2"]
[EndTime "13:03:23 PDT"]
[Termination "stefanodinn won by checkmate"]

1. e4 {[%clk 0:03:01.9]} 1... c5 {[%clk 0:02:56.5]} 2. d4 {[%clk 0:03:02.2]}
2... cxd4 {[%clk 0:02:56.3]} 3. c3 {[%clk 0:03:02.5]} 3... dxc3 {[%clk
0:02:55.1]} 4. Nxc3 {[%clk 0:03:04.4]} 4... Nc6 {[%clk 0:02:54.3]} 5. Nf3 {[%clk
0:03:03.4]} 5... d6 {[%clk 0:02:55.1]} 6. Bc4 {[%clk 0:03:03.6]} 6... e6 {[%clk
0:02:55.7]} 7. Bf4 {[%clk 0:02:57.6]} 7... Be7 {[%clk 0:02:52.3]} 8. O-O {[%clk
0:02:57.7]} 8... Nf6 {[%clk 0:02:50.6]} 9. Qe2 {[%clk 0:02:57.8]} 9... e5 {[%clk
0:02:41.1]} 10. Bg3 {[%clk 0:02:54.7]} 10... O-O {[%clk 0:02:40.6]} 11. Rfd1
{[%clk 0:02:55.3]} 11... Bg4 {[%clk 0:02:38.7]} 12. Rac1 {[%clk 0:02:53.6]}
12... Nd4 {[%clk 0:02:28.1]} 13. Qe3 {[%clk 0:02:44.4]} 13... Bxf3 {[%clk
0:02:25.5]} 14. gxf3 {[%clk 0:02:45.8]} 14... Rc8 {[%clk 0:02:22.6]} 15. Ne2
{[%clk 0:02:26.8]} 15... Nxe2+ {[%clk 0:01:50.5]} 16. Qxe2 {[%clk 0:02:24.9]}
16... Qb6 {[%clk 0:01:47.4]} 17. Rc2 {[%clk 0:02:13.5]} 17... Nh5 {[%clk
0:01:41.6]} 18. Rdc1 {[%clk 0:02:04.4]} 18... Rcd8 {[%clk 0:01:33.9]} 19. Bd5
{[%clk 0:01:48.2]} 19... Bg5 {[%clk 0:01:30.6]} 20. Rd1 {[%clk 0:01:28.6]} 20...
Rc8 {[%clk 0:01:12]} 21. Rxc8 {[%clk 0:01:15.9]} 21... Rxc8 {[%clk 0:01:11.9]}
22. f4 {[%clk 0:01:06.9]} 22... Nxf4 {[%clk 0:00:34.4]} 23. Qg4 {[%clk
0:00:46.4]} 23... Rf8 {[%clk 0:00:28.4]} 24. Kh1 {[%clk 0:00:19.9]} 24... Bh6
{[%clk 0:00:18.4]} 25. Qd7 {[%clk 0:00:16.1]} 25... g6 {[%clk 0:00:11.7]} 26.
Rc1 {[%clk 0:00:16.8]} 26... Nxd5 {[%clk 0:00:09.2]} 27. Rc8 {[%clk 0:00:10.8]}
27... Nf6 {[%clk 0:00:02.2]} 28. Rxf8+ {[%clk 0:00:09.9]} 28... Bxf8 {[%clk
0:00:02.6]} 29. Qc8 {[%clk 0:00:10.1]} 29... Qc6 {[%clk 0:00:03.7]} 30. Qh3
{[%clk 0:00:09.9]} 30... Qxe4+ {[%clk 0:00:04.3]} 31. Kg1 {[%clk 0:00:10.9]}
31... Qf3 {[%clk 0:00:05.2]} 32. Qf1 {[%clk 0:00:12]} 32... Ne4 {[%clk
0:00:06.4]} 33. Bh4 {[%clk 0:00:10.9]} 33... Nf6 {[%clk 0:00:06.8]} 34. Bg3
{[%clk 0:00:11.6]} 34... Ng4 {[%clk 0:00:07.8]} 35. Qh3 {[%clk 0:00:11]} 35...
h5 {[%clk 0:00:08.5]} 36. Qf1 {[%clk 0:00:11.7]} 36... Nf6 {[%clk 0:00:08.6]}
37. Bh4 {[%clk 0:00:12.7]} 37... Ne4 {[%clk 0:00:09.2]} 38. Bg3 {[%clk
0:00:13.6]} 38... Qg4 {[%clk 0:00:10.1]} 39. Qg2 {[%clk 0:00:13.9]} 39... Nxg3
{[%clk 0:00:10.8]} 40. hxg3 {[%clk 0:00:14.3]} 40... h4 {[%clk 0:00:12]} 41.
Qxb7 {[%clk 0:00:14.9]} 41... hxg3 {[%clk 0:00:12.5]} 42. fxg3 {[%clk
0:00:15.6]} 42... Qxg3+ {[%clk 0:00:13.5]} 43. Kf1 {[%clk 0:00:15.5]} 43... Qf4+
{[%clk 0:00:13.3]} 44. Ke2 {[%clk 0:00:15.9]} 44... Qd4 {[%clk 0:00:14.1]} 45.
Kf3 {[%clk 0:00:15.1]} 45... d5 {[%clk 0:00:14.2]} 46. Kg3 {[%clk 0:00:14.9]}
46... e4 {[%clk 0:00:15]} 47. Kg4 {[%clk 0:00:15.8]} 47... e3+ {[%clk
0:00:15.8]} 48. Kg5 {[%clk 0:00:16.9]} 48... Qe5+ {[%clk 0:00:16.3]} 49. Kg4
{[%clk 0:00:17.5]} 49... e2 {[%clk 0:00:16.9]} 50. b4 {[%clk 0:00:16.2]} 50...
e1=Q {[%clk 0:00:17]} 51. b5 {[%clk 0:00:17.2]} 51... Q1e4+ {[%clk 0:00:17.6]}
52. Kh3 {[%clk 0:00:17.5]} 52... Qh5+ {[%clk 0:00:18.6]} 53. Kg3 {[%clk
0:00:18.6]} 53... Qhf3+ {[%clk 0:00:19]} 54. Kh2 {[%clk 0:00:19.4]} 54... Qee2+
{[%clk 0:00:19.8]} 55. Kg1 {[%clk 0:00:17.9]} 55... Qff1# {[%clk 0:00:20.6]} 0-1